bitfinex/quotes_SOLUSD_20241210
["timestamp","ask_amount","ask_price","bid_price","bid_amount"]
[1733844202053,12.09281,213.34,213.2,36.8044236]
[1733844202380,13.9151013,213.35,213.25,36.8044236]
[1733844202381,11.1685,213.35,213.25,36.8044236]
[1733844202582,0.37451,213.34,213.25,36.8044236]
[1733844202873,0.37451,213.37,213.19,36.8044236]
[1733844203045,0.37451,213.37,213.1,15.0]
[1733844203046,0.12549,213.35,213.14,36.8044236]
[1733844203240,0.12549,213.33,213.14,36.8044236]
[1733844203449,0.37451,213.32,213.12,36.8044236]
[1733844203647,0.37451,213.32,213.14,36.8044236]
[1733844204080,20.0,213.28,213.14,36.8044236]
[1733844204257,0.37451,213.27,213.17,36.8044236]
[1733844204576,0.37451,213.3,213.17,36.8044236]
[1733844204821,20.0,213.28,213.12,0.7033614]
[1733844205085,11.1685,213.29,213.06,36.8044236]
[1733844205086,0.12549,213.25,213.06,36.8044236]
[1733844205290,0.5,213.25,213.08,36.8044236]
[1733844205459,0.37451,213.25,213.08,36.8044236]
[1733844205659,0.37451,213.25,213.1,36.8044236]
[1733844205902,0.37451,213.25,213.12,36.8044236]
[1733844206193,0.37451,213.25,213.1,36.8044236]
[1733844206800,20.0,213.21,213.06,36.8044236]
[1733844207063,20.0,213.21,213.08,36.8044236]
[1733844207064,0.37451,213.2,213.08,36.8044236]
[1733844207284,20.0,213.21,213.1,36.8044236]
[1733844207660,0.37451,213.23,213.12,36.8044236]
[1733844207858,11.7238,213.24,213.12,348.8044236]
[1733844208092,11.7238,213.24,213.14,36.8044236]
[1733844208275,3.19798602,213.26,213.14,36.8044236]
[1733844208276,0.37451,213.26,213.14,36.8044236]
[1733844208697,0.37451,213.27,213.14,36.8044236]
[1733844209014,11.7219,213.28,213.16,36.8044236]
[1733844209015,12.09641,213.28,213.16,36.8044236]
[1733844209529,11.1685,213.29,213.2,36.8044236]
[1733844209679,0.37451,213.28,213.16,36.8044236]
[1733844209876,11.1685,213.29,213.17,33.99564834]
[1733844210208,0.37451,213.34,213.21,33.99564834]
[1733844210209,3.1281684,213.34,213.21,33.99564834]
[1733844210399,0.37451,213.34,213.24,33.99564834]
[1733844210711,11.7171,213.37,213.27,33.99564834]
[1733844210880,0.37451,213.4,213.34,33.99564834]
[1733844211090,0.37451,213.43,213.34,33.99564834]
[1733844211286,12.08791,213.43,213.3,33.99564834]
[1733844211616,12.08791,213.43,213.26,33.99564834]
[1733844211820,12.08791,213.43,213.27,33.99564834]
[1733844212408,12.08791,213.43,213.26,345.99564834]
[1733844212704,0.12549,213.42,213.2,33.99564834]
[1733844212876,0.37451,213.41,213.24,33.99564834]
[1733844213078,20.0,213.4,213.25,33.99564834]
[1733844213322,0.37451,213.39,213.25,33.99564834]
[1733844213714,0.37451,213.39,213.15,18.5987]
[1733844213884,0.12549,213.38,213.2,33.99564834]
[1733844214212,11.7172,213.36,213.2,33.99564834]
[1733844214509,20.0,213.33,213.2,33.99564834]
[1733844214721,0.37451,213.32,213.18,33.99564834]
[1733844215286,11.72,213.31,213.16,33.99564834]
[1733844215511,0.37451,213.3,213.16,345.99564834]
[1733844215892,11.72,213.31,213.19,33.99564834]
[1733844216111,11.7181,213.35,213.23,33.99564834]
[1733844216327,0.37451,213.34,213.23,33.99564834]
[1733844216539,20.0,213.32,213.17,33.99564834]
[1733844216709,0.37451,213.31,213.18,33.99564834]
[1733844217047,0.37451,213.34,213.22,33.99564834]
[1733844217208,12.09261,213.35,213.24,33.99564834]
[1733844217407,0.37451,213.34,213.24,33.99564834]
[1733844217639,0.37451,213.38,213.24,33.99564834]
[1733844217841,0.37451,213.38,213.2,33.99564834]
[1733844218011,0.37451,213.38,213.25,33.99564834]
[1733844218347,0.37451,213.38,213.27,33.99564834]
[1733844218522,11.7156,213.39,213.27,33.99564834]
[1733844218724,0.37451,213.38,213.27,33.99564834]
[1733844219111,0.37451,213.38,213.27,345.99564834]
[1733844219315,0.37451,213.41,213.29,33.99564834]
[1733844219511,0.37451,213.42,213.31,33.99564834]
[1733844219766,12.08811,213.43,213.31,33.99564834]
[1733844219938,0.37451,213.41,213.31,33.99564834]
[1733844220227,0.37451,213.41,213.25,30.70295653]
[1733844220228,0.37451,213.41,213.29,33.99564834]
[1733844220410,0.37451,213.41,213.27,33.99564834]
[1733844220748,12.08811,213.43,213.3,33.99564834]
[1733844221109,0.37451,213.42,213.29,33.99564834]
[1733844221309,0.37451,213.42,213.27,30.0]
[1733844221310,11.7145,213.41,213.27,33.99564834]
[1733844221522,11.7145,213.41,213.31,33.99564834]
[1733844221933,0.37451,213.4,213.29,33.99564834]
[1733844222347,11.7145,213.41,213.29,33.99564834]
[1733844222553,11.7145,213.41,213.31,312.0]
[1733844222716,11.7145,213.41,213.32,33.99564834]
[1733844223043,12.138,213.44,213.33,33.99564834]
[1733844223345,11.7106,213.49,213.41,33.99564834]
[1733844223551,11.7077,213.54,213.42,33.99564834]
[1733844223737,0.37451,213.53,213.43,33.99564834]
[1733844223940,12.07991,213.58,213.47,33.99564834]
[1733844224139,0.85361502,213.57,213.48,33.99564834]
[1733844224343,0.85361502,213.57,213.44,0.7025555]
[1733844224344,0.85361502,213.57,213.51,33.99564834]
[1733844224519,12.55971502,213.57,213.32,38.73533641]
[1733844224716,0.37451,213.56,213.37,23.776884]
[1733844225024,1.22812502,213.56,213.43,33.99564834]
[1733844225635,1.22812502,213.56,213.4,33.99564834]
[1733844225828,1.22812502,213.56,213.39,33.99564834]
[1733844226035,0.12549,213.55,213.35,33.99564834]
[1733844226367,20.37451,213.54,213.35,33.99564834]
[1733844226566,20.0,213.49,213.32,312.0]
[1733844226847,20.37451,213.48,213.32,33.99564834]
[1733844227290,20.37451,213.48,213.34,33.99564834]
[1733844227463,0.37451,213.48,213.36,33.99564834]
[1733844227625,20.0,213.49,213.36,33.99564834]
[1733844227959,0.37451,213.48,213.34,33.99564834]
[1733844228133,20.0,213.49,213.37,33.99564834]
[1733844228335,0.37451,213.51,213.38,33.99564834]
[1733844228757,11.7096,213.5,213.36,33.99564834]
[1733844229034,0.37451,213.49,213.36,33.99564834]
[1733844229655,20.0,213.47,213.34,33.99564834]
[1733844229825,0.37451,213.46,213.34,33.99564834]
[1733844230523,0.37451,213.46,213.3,33.99564834]
[1733844230724,11.7123,213.45,213.3,33.99564834]
[1733844230950,0.42553191,213.45,213.34,33.99564834]
[1733844231358,0.42553191,213.45,213.37,33.99564834]
[1733844231562,0.42553191,213.45,213.4,33.99564834]
[1733844231772,0.42553191,213.45,213.4,0.70257781]
[1733844231938,0.42553191,213.45,213.39,33.99564834]
[1733844232135,0.42553191,213.45,213.4,34.6982841]
[1733844232436,0.42553191,213.45,213.4,0.70263576]
[1733844232668,0.42553191,213.45,213.33,33.99564834]
[1733844232846,0.42553191,213.45,213.34,23.776884]
[1733844233038,0.42553191,213.45,213.31,33.99564834]
[1733844233376,20.0,213.4,213.25,33.99564834]
[1733844233672,0.37451,213.39,213.21,33.99564834]
[1733844233875,0.80004191,213.39,213.21,33.99564834]
[1733844234176,0.80004191,213.39,213.19,33.99564834]
[1733844234639,0.42553191,213.39,213.34,33.99564834]
[1733844234844,0.42553191,213.39,213.3,33.99564834]
[1733844235044,0.42553191,213.39,213.26,33.99564834]
[1733844235364,0.42553191,213.39,213.28,33.99564834]
[1733844235768,0.42553191,213.39,213.26,33.99564834]
[1733844236060,0.42553191,213.39,213.28,33.99564834]
[1733844236364,0.42553191,213.39,213.28,345.99564834]
[1733844236560,0.42553191,213.39,213.3,33.99564834]
[1733844236856,0.42553191,213.39,213.32,33.99564834]
[1733844237462,0.42553191,213.39,213.34,33.99564834]
[1733844238163,0.42553191,213.39,213.36,33.99564834]
[1733844238336,0.42553191,213.39,213.32,0.12549]
[1733844238337,0.42553191,213.39,213.38,57.77253234]
[1733844238540,0.42553191,213.39,213.38,87.77253234]
[1733844238960,0.42553191,213.39,213.38,33.99564834]
[1733844239143,0.42553191,213.39,213.38,34.69827276]
[1733844239461,0.42553191,213.39,213.38,88.60064676]
[1733844239754,0.42553191,213.39,213.38,399.89802234]
[1733844240464,14.6732524,213.58,213.43,30.0]
[1733844240465,11.8839,213.58,213.43,30.0]
[1733844240642,11.8839,213.58,213.44,0.70234721]
[1733844240838,0.37451,213.57,213.41,33.99564834]
[1733844241035,0.37451,213.57,213.43,33.99564834]
[1733844241546,0.37451,213.57,213.45,33.99564834]
[1733844241750,0.37451,213.62,213.49,33.99564834]
[1733844241948,11.6993,213.65,213.56,33.99564834]
[1733844242297,12.07641,213.64,213.52,34.69776203]
[1733844242459,11.6993,213.65,213.54,33.99564834]
[1733844242773,0.37451,213.7,213.56,33.99564834]
[1733844243058,0.37451,213.71,213.58,33.99564834]
[1733844243265,23.6796,213.72,213.6,33.99564834]
[1733844243439,11.6956,213.76,213.64,33.99564834]
[1733844243640,11.6956,213.76,213.64,345.99564834]
[1733844244041,0.37451,213.75,213.64,345.99564834]
[1733844244269,11.6956,213.76,213.64,345.99564834]
[1733844244444,0.37451,213.75,213.62,33.99564834]
[1733844245044,11.6956,213.76,213.64,33.99564834]
[1733844245265,0.37451,213.75,213.63,0.70188456]
[1733844245480,11.6956,213.76,213.64,33.99564834]
[1733844245770,0.37451,213.72,213.54,33.99564834]
[1733844245963,0.37451,213.72,213.46,2.81758705]
[1733844245964,0.12549,213.71,213.55,0.8562732]
[1733844246167,0.12549,213.67,213.55,0.8562732]
[1733844246342,0.62549,213.67,213.55,0.8562732]
[1733844246675,39.027864,213.65,213.37,37.27185558]
[1733844246979,0.25098,213.61,213.42,33.99564834]
[1733844247151,0.62549,213.61,213.42,33.99564834]
[1733844247350,0.25098,213.59,213.42,33.99564834]
[1733844247655,20.0,213.5,213.38,0.85695539]
[1733844247854,0.12549,213.48,213.37,7.27185558]
[1733844248052,0.25098,213.46,213.37,7.27185558]
[1733844248251,0.25098,213.44,213.37,7.27185558]
[1733844248448,0.25098,213.42,213.37,7.27185558]
[1733844248652,20.12549,213.38,213.37,7.27185558]
[1733844248850,20.25098,213.38,213.37,5.558e-05]
[1733844249057,0.25098,213.37,213.36,11.49991116]
[1733844249251,0.62549,213.37,213.34,29.08742233]
[1733844249655,0.37451,213.4,213.34,29.08742233]
[1733844249859,0.37451,213.45,213.34,63.08307067]
[1733844250067,11.9819,213.5,213.38,33.99564834]
[1733844250068,0.85361502,213.44,213.38,33.99564834]
[1733844250280,0.85361502,213.44,213.39,0.70264916]
[1733844250476,0.85361502,213.44,213.34,29.08742233]
[1733844250477,0.85361502,213.44,213.34,33.99564834]
[1733844250678,0.85361502,213.44,213.34,312.0]
[1733844250894,0.85361502,213.44,213.35,0.70282492]
[1733844251250,0.85361502,213.44,213.36,33.99564834]
[1733844251455,0.85361502,213.44,213.42,33.99564834]
[1733844251674,0.85361502,213.44,213.43,0.70254945]
[1733844252098,0.85361502,213.44,213.42,33.99564834]
[1733844252295,0.85361502,213.44,213.38,33.99564834]
[1733844252600,0.85361502,213.44,213.36,7.5117]
[1733844252766,0.85361502,213.44,213.36,41.50734834]
[1733844252959,0.85361502,213.44,213.36,34.40734834]
[1733844253283,0.12549,213.43,213.3,33.99564834]
[1733844253461,0.12549,213.42,213.3,33.99564834]
[1733844253659,0.12549,213.42,213.28,33.99564834]
[1733844253875,0.12549,213.42,213.3,33.99564834]
[1733844254356,0.76292411,213.44,213.36,33.99564834]
[1733844254565,0.76292411,213.44,213.38,33.99564834]
[1733844255095,0.76292411,213.44,213.31,33.99564834]
[1733844255390,0.76292411,213.44,213.37,33.99564834]
[1733844255556,0.76292411,213.44,213.38,33.99564834]
[1733844255964,0.76292411,213.44,213.4,33.99564834]
[1733844256152,0.76292411,213.44,213.36,33.99564834]
[1733844256695,0.76292411,213.44,213.39,33.99564834]
[1733844256857,0.76292411,213.44,213.4,33.99564834]
[1733844257297,0.76292411,213.44,213.43,33.99564834]
[1733844257501,0.76292411,213.44,213.4,33.99564834]
[1733844257688,0.76292411,213.44,213.37,33.99564834]
[1733844258288,0.76292411,213.44,213.33,33.99564834]
[1733844259200,0.25098,213.43,213.33,33.99564834]
[1733844259495,0.25098,213.43,213.32,33.99564834]
[1733844259909,0.62549,213.43,213.29,33.99564834]
[1733844260209,0.62549,213.43,213.23,11.7211]
[1733844260210,20.25098,213.4,213.24,30.0]
[1733844260412,20.25098,213.4,213.27,33.99564834]
[1733844260774,0.12549,213.42,213.31,33.99564834]
[1733844261185,0.25098,213.42,213.31,312.0]
[1733844261405,0.25098,213.4,213.28,33.99564834]
[1733844261814,0.25098,213.38,213.23,33.99564834]
[1733844262120,0.25098,213.38,213.24,0.70317792]
[1733844262417,0.25098,213.36,213.22,33.99564834]
[1733844262795,0.25098,213.36,213.24,33.99564834]
[1733844262992,0.5,213.38,213.25,34.69876238]
[1733844263195,0.5,213.38,213.27,33.99564834]
[1733844263196,0.12549,213.38,213.27,33.99564834]
[1733844263504,0.5,213.38,213.26,33.99564834]
[1733844263695,0.12549,213.37,213.24,33.99564834]
[1733844263905,0.12549,213.33,213.2,52.76470534]
[1733844264215,0.12549,213.32,213.19,0.70323305]
[1733844264514,0.12549,213.32,213.21,33.99564834]
[1733844264688,0.62549,213.33,213.22,0.70318684]
[1733844265105,0.62549,213.33,213.2,312.0]
[1733844265308,0.62549,213.33,213.17,33.99564834]
[1733844265552,0.25098,213.28,213.14,33.99564834]
[1733844265695,0.25098,213.28,213.15,33.99564834]
[1733844265895,0.62549,213.28,213.15,33.99564834]
[1733844266139,0.62549,213.28,213.16,33.99564834]
[1733844266311,0.62549,213.28,213.12,33.99564834]
[1733844266628,0.62549,213.28,213.13,33.99564834]
[1733844266930,0.25098,213.28,213.15,33.99564834]
[1733844267243,11.7191,213.33,213.21,33.99564834]
[1733844267397,0.37451,213.32,213.19,33.99564834]
[1733844267604,0.37451,213.32,213.2,33.99564834]
[1733844267804,0.12549,213.31,213.18,34.69893625]
[1733844268227,0.12549,213.31,213.19,33.99564834]
[1733844268509,0.37451,213.32,213.15,11.7191]
[1733844268510,0.12549,213.32,213.22,33.99564834]
[1733844268818,0.37451,213.36,213.22,34.6987812]
[1733844269011,0.37451,213.36,213.24,33.99564834]
[1733844269322,11.717,213.37,213.25,33.99564834]
[1733844269531,0.37451,213.36,213.23,33.99564834]
[1733844269932,0.12549,213.35,213.23,33.99564834]
[1733844270145,0.25098,213.35,213.22,0.70313286]
[1733844270335,0.25098,213.35,213.11,15.0]
[1733844270336,0.25098,213.33,213.18,33.99564834]
[1733844270512,0.25098,213.3,213.18,33.98444319]
[1733844270832,0.62549,213.3,213.14,46.07725319]
[1733844271023,0.62549,213.3,213.03,26.6673]
[1733844271024,0.25098,213.28,213.09,33.98444319]
[1733844271226,20.25098,213.26,213.09,33.98444319]
[1733844271427,0.25098,213.24,213.08,33.98444319]
[1733844271619,0.25098,213.22,213.07,33.98444319]
[1733844271819,0.25098,213.22,213.08,345.98444319]
[1733844272130,0.25098,213.22,213.1,33.98444319]
[1733844272330,20.0,213.25,213.05,32.83330811]
[1733844272331,0.12549,213.24,213.15,33.98444319]
[1733844272545,0.12549,213.24,213.11,30.7035331]
[1733844272546,0.12549,213.27,213.16,34.68786213]
[1733844272846,11.1916,213.29,213.17,33.98444319]
[1733844273046,0.12549,213.28,213.17,33.98444319]
[1733844273234,11.1916,213.29,213.2,33.98444319]
[1733844273424,11.1916,213.29,213.17,33.98444319]
[1733844273623,11.1916,213.29,213.18,34.68781314]
[1733844273624,0.12549,213.28,213.18,34.68781314]
[1733844274045,0.5,213.28,213.15,33.98444319]
[1733844274232,0.5,213.28,213.16,33.98444319]
[1733844274437,0.5,213.28,213.13,33.98444319]
[1733844274754,11.1916,213.29,213.2,33.98444319]
[1733844275063,11.1916,213.36,213.25,33.98444319]
[1733844275228,11.1916,213.36,213.27,33.98444319]
[1733844275426,11.7141,213.42,213.28,34.68744058]
[1733844276044,11.715,213.4,213.25,33.98444319]
[1733844276229,0.5,213.39,213.23,33.98444319]
[1733844276431,0.5,213.39,213.22,12.42764571]
[1733844276432,0.5,213.39,213.26,33.98444319]
[1733844276761,0.37451,213.39,213.27,0.70304108]
[1733844276931,0.12549,213.38,213.27,0.70304108]
[1733844277133,11.715,213.4,213.27,34.68748427]
[1733844277326,0.37451,213.41,213.27,0.70304108]
[1733844277532,0.12549,213.4,213.23,33.96203584]
[1733844277749,11.7139,213.42,213.21,33.96203584]
[1733844277750,0.12549,213.38,213.21,33.96203584]
[1733844278051,15.12549,213.36,213.13,0.70316726]
[1733844278265,11.1916,213.28,213.03,18.784468]
[1733844278468,15.12549,213.26,213.01,33.96203584]
[1733844278678,20.0,213.18,213.0,33.96203584]
[1733844278831,0.12549,213.16,213.01,312.0]
[1733844279025,0.12549,213.16,213.02,33.96203584]
[1733844279254,0.12549,213.16,213.01,312.0]
[1733844279255,0.37451,213.17,213.06,33.96203584]
[1733844279457,0.12549,213.21,213.1,33.96203584]
[1733844280027,0.37451,213.27,213.14,33.96203584]
[1733844280294,0.37451,213.27,213.12,33.96203584]
[1733844280499,0.37451,213.27,213.13,0.7035146]
[1733844280687,0.12549,213.26,213.13,0.7035146]
[1733844281265,0.12549,213.25,213.13,0.7035146]
[1733844281908,0.12549,213.22,213.1,33.96203584]
[1733844282073,0.5,213.22,213.1,33.96203584]
[1733844282266,0.12549,213.21,213.08,0.70346448]
[1733844282473,0.12549,213.21,213.08,312.70346448]
[1733844282769,0.12549,213.21,213.08,312.0]
[1733844283739,0.25098,213.19,213.06,33.96203584]
[1733844283910,0.25098,213.19,213.07,0.70363242]
[1733844284778,0.12549,213.19,213.07,0.70363242]
[1733844285010,34.6356,213.28,213.12,33.96203584]
[1733844285183,11.1916,213.28,213.17,33.96203584]
[1733844285388,11.1916,213.28,213.18,0.70335059]
[1733844285689,0.37451,213.27,213.14,34.66537257]
[1733844285887,0.12549,213.26,213.11,33.96203584]
[1733844286102,0.12549,213.26,213.12,34.66559213]
[1733844286311,0.12549,213.26,213.13,33.96203584]
[1733844286610,0.12549,213.26,213.12,0.70355629]
[1733844286818,0.25098,213.26,213.15,312.0]
[1733844287910,11.1916,213.28,213.16,34.66548501]
[1733844288236,0.12549,213.27,213.16,34.66548501]
[1733844288430,0.12549,213.27,213.17,33.96203584]
[1733844288618,0.12549,213.27,213.16,34.66548501]
[1733844289641,11.1916,213.28,213.18,33.96203584]
[1733844289941,6.8637,213.33,213.19,34.6652775]
[1733844290149,0.12549,213.32,213.19,34.6652775]
[1733844290500,0.12549,213.32,213.2,33.96203584]
[1733844290709,11.84439,213.33,213.18,33.96203584]
[1733844290922,11.84439,213.33,213.21,312.0]
[1733844290923,0.55102192,213.31,213.21,312.0]
[1733844291206,0.25098,213.29,213.21,312.0]
[1733844291540,0.25098,213.27,213.12,33.96203584]
[1733844291706,0.62549,213.27,213.12,34.66548335]
[1733844292044,0.12549,213.25,213.12,34.66548335]
[1733844292420,0.42553192,213.24,213.12,34.66548335]
[1733844292611,0.42553192,213.24,213.12,0.70344751]
[1733844293007,0.42553192,213.24,213.09,41.732]
[1733844293008,0.25098,213.23,213.09,0.70344848]
[1733844293315,0.25098,213.23,213.08,33.96203584]
[1733844293525,0.25098,213.25,213.07,41.27933584]
[1733844293718,0.25098,213.21,213.07,41.27933584]
[1733844294043,0.12549,213.19,213.07,41.27933584]
[1733844294243,11.7248,213.23,213.08,34.66563428]
[1733844294409,0.12549,213.25,213.13,33.96203584]
[1733844294605,11.7227,213.27,213.14,33.96203584]
[1733844294844,0.37451,213.29,213.15,0.70335203]
[1733844295052,20.0,213.3,213.15,34.66538787]
[1733844295053,0.37451,213.3,213.15,34.66538787]
[1733844295860,12.09491,213.31,213.15,34.66538787]
[1733844296152,0.25098,213.3,213.15,0.70335203]
[1733844296324,0.25098,213.28,213.15,0.70335203]
[1733844296524,0.25098,213.28,213.14,0.703376]
[1733844296831,0.12549,213.29,213.16,33.96203584]
[1733844297033,0.37451,213.32,213.17,30.7032648]
[1733844297251,11.1916,213.35,213.21,33.96203584]
[1733844297252,22.9099,213.35,213.21,33.96203584]
[1733844297557,22.9099,213.35,213.22,0.70316324]
[1733844297935,0.37451,213.34,213.25,312.0]
[1733844298134,0.37451,213.34,213.13,33.96203584]
[1733844298342,0.12549,213.32,213.15,63.96203584]
[1733844298539,0.12549,213.31,213.16,0.70329319]
[1733844298756,0.12549,213.3,213.16,0.70329319]
[1733844299161,0.12549,213.28,213.16,0.70329319]
[1733844299358,0.12549,213.28,213.13,33.96203584]
[1733844299359,0.12549,213.27,213.13,33.96203584]
[1733844299675,0.12549,213.26,213.13,33.96203584]
[1733844299980,0.12549,213.26,213.14,0.70336951]
[1733844300278,0.62549,213.27,213.14,0.70336951]
[1733844300480,0.12549,213.25,213.14,0.70336951]
[1733844300682,20.0,213.23,213.09,33.96203584]
[1733844300868,20.0,213.23,213.08,0.70342536]
[1733844300869,0.12549,213.21,213.05,34.66559738]
[1733844301075,0.25098,213.19,213.01,33.96203584]
[1733844301251,0.25098,213.16,212.99,7.2554]
[1733844301452,0.62549,213.16,212.99,7.2554]
[1733844301664,20.62549,213.16,212.98,1.25685459]
[1733844301868,0.12549,213.09,212.98,0.5529914]
[1733844302147,0.12549,213.04,212.98,0.5529914]
[1733844302351,0.62549,213.04,212.98,0.5529914]
[1733844302579,0.62549,213.04,212.98,9.14e-05]
[1733844302880,0.62549,213.04,212.83,33.96203584]
[1733844302881,0.25098,213.0,212.83,33.96203584]
[1733844303173,0.25098,213.0,212.83,34.66639923]
[1733844303174,0.62549,213.0,212.83,34.66639923]
[1733844303347,0.62549,213.0,212.83,0.70436339]
[1733844303552,0.62549,213.0,212.8,0.70443432]
[1733844303773,42.56349,213.0,212.8,0.70443432]
[1733844303976,0.25098,212.93,212.77,35.21961328]
[1733844304179,0.62549,212.93,212.8,312.0]
[1733844304492,0.37451,212.99,212.83,33.96203584]
[1733844304650,6.938,213.0,212.89,33.96203584]
[1733844304848,0.37451,213.05,212.93,33.96203584]
[1733844305067,0.37451,213.06,212.95,33.96203584]
[1733844305274,17.9027,213.08,212.98,33.96203584]
[1733844305275,10.9647,213.08,212.98,33.96203584]
[1733844305453,10.9647,213.08,212.97,33.96203584]
[1733844305654,11.33921,213.15,213.04,33.96203584]
[1733844305853,11.33921,213.15,213.05,33.96203584]
[1733844305854,10.9647,213.15,213.05,33.96203584]
[1733844306055,0.37451,213.14,213.04,33.96203584]
[1733844306268,10.9647,213.15,213.05,33.96203584]
[1733844306470,10.9647,213.22,213.08,33.96203584]
[1733844306699,10.9647,213.22,213.12,33.96203584]
[1733844307261,0.37451,213.21,213.03,33.96203584]
[1733844307579,0.12549,213.2,213.05,312.0]
[1733844307780,0.12549,213.18,213.05,312.0]
[1733844307977,0.37451,213.21,213.07,33.96203584]
[1733844308162,0.37451,213.21,213.05,33.96203584]
[1733844308359,0.37451,213.21,213.06,33.96203584]
[1733844308874,0.37451,213.21,213.02,0.70373717]
[1733844309067,0.37451,213.21,212.93,15.0]
[1733844309068,15.12549,213.16,212.93,33.96203584]
[1733844309265,0.12549,213.14,212.97,33.96203584]
[1733844309586,21.938,213.2,213.01,33.96203584]
[1733844309587,0.12549,213.12,213.01,33.96203584]
[1733844309780,0.12549,213.12,213.03,33.96203584]
[1733844309962,0.37451,213.16,213.02,34.66588926]
[1733844310167,0.12549,213.15,213.0,33.96203584]
[1733844310364,0.12549,213.13,213.0,33.96203584]
[1733844311083,0.37451,213.12,212.97,33.96203584]
[1733844311258,0.25098,213.11,212.95,0.70393416]
[1733844311459,0.25098,213.09,212.93,33.96203584]
[1733844311658,0.12549,213.07,212.93,33.96203584]
[1733844311891,0.12549,213.07,212.97,33.96203584]
[1733844312600,0.37451,213.14,213.01,33.96203584]
[1733844312898,11.7289,213.15,213.02,33.96203584]
[1733844313070,0.37451,213.14,213.02,33.96203584]
[1733844313270,0.37451,213.14,213.01,33.96203584]
[1733844313979,0.12549,213.13,213.02,33.96203584]
[1733844314181,0.12549,213.09,212.85,30.0]
[1733844314378,0.12549,213.08,212.91,33.96203584]
[1733844314570,0.12549,213.06,212.93,33.96203584]
[1733844315095,0.37451,213.09,212.98,33.96203584]
[1733844315292,0.5,213.12,213.03,33.96203584]
[1733844315475,0.37451,213.12,213.01,33.96203584]
[1733844315670,0.12549,213.11,212.98,33.96203584]
[1733844315865,0.12549,213.11,212.96,33.96203584]
[1733844316064,0.12549,213.09,212.96,33.96203584]
[1733844316264,0.37451,213.08,212.92,33.96203584]
[1733844316482,0.37451,213.08,212.94,33.96203584]
[1733844316700,0.25098,213.07,212.94,33.96203584]
[1733844316900,20.12549,213.07,212.94,33.96203584]
[1733844317192,11.7315,213.1,212.94,33.96203584]
[1733844317193,0.12549,213.05,212.94,345.96203584]
[1733844317402,0.12549,213.05,212.95,33.96203584]
[1733844318268,0.12549,213.05,212.97,33.96203584]
[1733844318605,0.12549,213.06,212.94,33.96203584]
[1733844318793,0.12549,213.03,212.88,33.96203584]
[1733844319092,0.5,213.03,212.88,33.96203584]
[1733844319978,12.2354,213.03,212.88,33.96203584]
[1733844320492,0.12549,213.02,212.88,33.96203584]
[1733844320795,0.12549,213.0,212.88,345.96203584]
[1733844321297,0.12549,213.0,212.89,34.66642296]
[1733844321491,0.5,213.02,212.91,33.96203584]
[1733844321999,0.37451,213.06,212.94,33.96203584]
[1733844322373,0.37451,213.06,212.85,60.70713584]
[1733844322374,20.0,213.04,212.9,33.96203584]
[1733844322571,0.37451,213.03,212.9,33.96203584]
[1733844322981,0.12549,213.02,212.92,33.96203584]
[1733844323293,0.5,213.03,212.9,33.96203584]
[1733844323495,20.0,212.99,212.86,33.96203584]
[1733844323793,0.12549,212.97,212.8,33.96203584]
[1733844323975,0.25098,212.95,212.8,33.96203584]
[1733844324179,0.12549,212.93,212.8,33.96203584]
[1733844324802,0.25098,212.89,212.77,0.5529914]
[1733844325107,0.5,212.89,212.77,0.5529914]
[1733844325577,12.2436,212.89,212.77,0.5529914]
[1733844326713,0.37451,212.88,212.8,33.96203584]
[1733844326872,0.12549,212.89,212.79,33.96203584]
[1733844327073,11.7411,212.93,212.82,33.96203584]
[1733844327582,0.37451,212.92,212.82,345.96203584]
[1733844327783,0.37451,212.92,212.82,33.96203584]
[1733844327981,11.742,212.91,212.8,33.96203584]
[1733844328178,0.37451,212.9,212.8,33.96203584]
[1733844328386,0.12549,212.89,212.78,33.96203584]
[1733844328977,0.12549,212.87,212.77,0.5529914]
[1733844329505,0.12549,212.89,212.78,33.96203584]
[1733844329709,0.12549,212.87,212.78,33.96203584]
[1733844330272,0.37451,212.9,212.78,33.96203584]
[1733844330273,11.86859,212.89,212.78,33.96203584]
[1733844330513,0.12549,212.87,212.78,33.96203584]
[1733844330876,0.12549,212.87,212.78,345.96203584]
[1733844331700,11.741,212.93,212.82,33.96203584]